[Event "Titled Tuesday Blitz March 08 Early 2022"]
[White "Kanyamarala, Tarun"]
[Black "Prohorov, Olexandr"]
[WhiteFideId "45004714"]
[BlackFideId "14105578"]
[WhiteElo "2075"]
[BlackElo "1993"]
[Result "1-0"]
[Round "03"]
[TimeControl "180+1"]
[Date "2022.03.09"]
[WhiteClock "0:00:29"]
[BlackClock "0:00:06"]

1. d4 {[%clk 0:02:45]}  g6 {[%clk 0:02:58]} 2. e4 {[%clk 0:02:44]}  Bg7 {[%clk 0:02:58]} 3. Nc3 {[%clk 0:02:43]}  c6 {[%clk 0:02:59]} 4. f4 {[%clk 0:02:42]}  d5 {[%clk 0:02:58]} 5. e5 {[%clk 0:02:42]}  h5 {[%clk 0:02:59]} 6. Nf3 {[%clk 0:02:42]}  Bg4 {[%clk 0:02:53]} 7. Be3 {[%clk 0:02:41]}  Nh6 {[%clk 0:02:53]} 8. h3 {[%clk 0:02:32]}  Bxf3 {[%clk 0:02:52]} 9. Qxf3 {[%clk 0:02:33]}  Nf5 {[%clk 0:02:52]} 10. Bf2 {[%clk 0:02:32]}  h4 {[%clk 0:02:52]} 11. O-O-O {[%clk 0:02:20]}  e6 {[%clk 0:02:51]} 12. Ne2 {[%clk 0:02:17]}  Nd7 {[%clk 0:02:38]} 13. g4 {[%clk 0:02:16]}  hxg3 {[%clk 0:02:37]} 14. Nxg3 {[%clk 0:02:13]}  Nh4 {[%clk 0:02:29]} 15. Qb3 {[%clk 0:02:06]}  Qb6 {[%clk 0:02:28]} 16. Qd3 {[%clk 0:01:44]}  Qa5 {[%clk 0:01:45]} 17. Kb1 {[%clk 0:01:42]}  b5 {[%clk 0:01:46]} 18. Ne2 {[%clk 0:01:32]}  Nf5 {[%clk 0:01:38]} 19. h4 {[%clk 0:01:29]}  O-O-O {[%clk 0:01:30]} 20. Bh3 {[%clk 0:01:15]}  Rh7 {[%clk 0:01:13]} 21. Bg4 {[%clk 0:01:08]}  Rdh8 {[%clk 0:01:12]} 22. h5 {[%clk 0:01:08]}  Qd8 {[%clk 0:00:46]} 23. Rh3 {[%clk 0:00:54]}  Kb7 {[%clk 0:00:36]} 24. Rdh1 {[%clk 0:00:53]}  Qe7 {[%clk 0:00:35]} 25. hxg6 {[%clk 0:00:51]}  Rxh3 {[%clk 0:00:35]} 26. Rxh3 {[%clk 0:00:49]}  fxg6 {[%clk 0:00:34]} 27. a4 {[%clk 0:00:46]}  a6 {[%clk 0:00:33]} 28. Nc1 {[%clk 0:00:43]}  Qb4 {[%clk 0:00:27]} 29. axb5 {[%clk 0:00:37]}  axb5 {[%clk 0:00:25]} 30. Rxh8 {[%clk 0:00:37]}  Bxh8 {[%clk 0:00:25]} 31. Qh3 {[%clk 0:00:33]}  Qf8 {[%clk 0:00:24]} 32. Nb3 {[%clk 0:00:32]}  Bg7 {[%clk 0:00:18]} 33. Na5+ {[%clk 0:00:31]}  Kb6 {[%clk 0:00:19]} 34. Nb3 {[%clk 0:00:31]}  Qh8 {[%clk 0:00:18]} 35. Qg2 {[%clk 0:00:30]}  Bh6 {[%clk 0:00:14]} 36. Qf3 {[%clk 0:00:29]}  Qf8 {[%clk 0:00:12]} 37. Be1 {[%clk 0:00:29]}  Ne7 {[%clk 0:00:09]} 38. Bxe6 {[%clk 0:00:29]}  Nb8 {[%clk 0:00:06]} 39. Ba5+ {[%clk 0:00:29]}  Kb7 {[%clk 0:00:06]} 40. Nc5+ {[%clk 0:00:29]}  Ka8 {[%clk 0:00:06]} 41. Qa3 {[%clk 0:00:29]} 1-0


[Site "https://www.chess.com"]

[Event "Titled Tuesday Blitz March 08 Early 2022"]
[White "Karas, Marek"]
[Black "Kamsky, Gata"]
[WhiteFideId "14928558"]
[BlackFideId "2000024"]
[WhiteElo "2271"]
[BlackElo "2645"]
[Result "0-1"]
[Round "03"]
[TimeControl "180+1"]
[Date "2022.03.09"]
[WhiteClock "0:00:05"]
[BlackClock "0:00:45"]

1. d4 {[%clk 0:03:00]}  d5 {[%clk 0:02:58]} 2. c4 {[%clk 0:02:59]}  c6 {[%clk 0:02:58]} 3. Nf3 {[%clk 0:02:59]}  Nf6 {[%clk 0:02:57]} 4. Nc3 {[%clk 0:03:00]}  a6 {[%clk 0:02:55]} 5. cxd5 {[%clk 0:02:57]}  cxd5 {[%clk 0:02:52]} 6. Bf4 {[%clk 0:02:58]}  Nc6 {[%clk 0:02:49]} 7. e3 {[%clk 0:02:57]}  Bg4 {[%clk 0:02:48]} 8. Be2 {[%clk 0:02:54]}  Bxf3 {[%clk 0:02:47]} 9. Bxf3 {[%clk 0:02:54]}  e6 {[%clk 0:02:48]} 10. O-O {[%clk 0:02:53]}  Bd6 {[%clk 0:02:46]} 11. Bxd6 {[%clk 0:02:51]}  Qxd6 {[%clk 0:02:46]} 12. Qb3 {[%clk 0:02:51]}  Rb8 {[%clk 0:02:44]} 13. Na4 {[%clk 0:02:43]}  O-O {[%clk 0:02:41]} 14. Rac1 {[%clk 0:02:40]}  Rfc8 {[%clk 0:02:39]} 15. Nb6 {[%clk 0:02:27]}  Rc7 {[%clk 0:02:38]} 16. Qa3 {[%clk 0:02:19]}  Qxa3 {[%clk 0:02:18]} 17. bxa3 {[%clk 0:02:19]}  Ne8 {[%clk 0:02:17]} 18. Rc5 {[%clk 0:02:09]}  Na7 {[%clk 0:01:43]} 19. Rfc1 {[%clk 0:02:04]}  Rxc5 {[%clk 0:01:43]} 20. Rxc5 {[%clk 0:02:05]}  Rd8 {[%clk 0:01:42]} 21. a4 {[%clk 0:01:57]}  Kf8 {[%clk 0:01:38]} 22. Be2 {[%clk 0:01:53]}  Rd6 {[%clk 0:01:24]} 23. Na8 {[%clk 0:01:25]}  Rc6 {[%clk 0:01:22]} 24. Rxc6 {[%clk 0:01:23]}  Nxc6 {[%clk 0:01:21]} 25. Bd1 {[%clk 0:01:06]}  Ke7 {[%clk 0:01:20]} 26. Kf1 {[%clk 0:00:48]}  Nd6 {[%clk 0:01:14]} 27. Nb6 {[%clk 0:00:40]}  Na5 {[%clk 0:01:12]} 28. Ke1 {[%clk 0:00:33]}  Kd8 {[%clk 0:01:11]} 29. Bf3 {[%clk 0:00:27]}  Ne4 {[%clk 0:01:04]} 30. Bxe4 {[%clk 0:00:23]}  dxe4 {[%clk 0:01:04]} 31. Kd2 {[%clk 0:00:15]}  Kc7 {[%clk 0:01:04]} 32. Na8+ {[%clk 0:00:14]}  Kc6 {[%clk 0:01:04]} 33. Kc3 {[%clk 0:00:14]}  b6 {[%clk 0:01:02]} 34. d5+ {[%clk 0:00:12]}  exd5 {[%clk 0:01:01]} 35. Kd4 {[%clk 0:00:12]}  Nc4 {[%clk 0:00:59]} 36. f3 {[%clk 0:00:10]}  exf3 {[%clk 0:00:58]} 37. gxf3 {[%clk 0:00:11]}  Nd6 {[%clk 0:00:54]} 38. Nxb6 {[%clk 0:00:09]}  Kxb6 {[%clk 0:00:54]} 39. Kxd5 {[%clk 0:00:10]}  Nf5 {[%clk 0:00:54]} 40. e4 {[%clk 0:00:10]}  Nh4 {[%clk 0:00:51]} 41. f4 {[%clk 0:00:10]}  Kc7 {[%clk 0:00:50]} 42. e5 {[%clk 0:00:07]}  Nf5 {[%clk 0:00:49]} 43. a5 {[%clk 0:00:07]}  Ne7+ {[%clk 0:00:47]} 44. Kc5 {[%clk 0:00:07]}  Nc6 {[%clk 0:00:47]} 45. Kd5 {[%clk 0:00:06]}  Nb4+ {[%clk 0:00:45]} 46. Kc5 {[%clk 0:00:04]}  Nd3+ {[%clk 0:00:45]} 47. Kd5 {[%clk 0:00:04]}  Nxf4+ {[%clk 0:00:45]} 48. Ke4 {[%clk 0:00:05]}  Ne6 {[%clk 0:00:45]} 0-1


[Site "https://www.chess.com"]

[Event "Titled Tuesday Blitz March 08 Early 2022"]
[White "Karolczuk, Iwo"]
[Black "Lazavik, Denis"]
[WhiteFideId "21816972"]
[BlackFideId "13515110"]
[WhiteElo "2243"]
[BlackElo "2437"]
[Result "0-1"]
[Round "03"]
[TimeControl "180+1"]
[Date "2022.03.08"]
[WhiteClock "0:00:03"]
[BlackClock "0:00:06"]

1. d4 {[%clk 0:02:58]}  d5 {[%clk 0:02:57]} 2. Nf3 {[%clk 0:02:53]}  Nf6 {[%clk 0:02:57]} 3. c4 {[%clk 0:02:53]}  c6 {[%clk 0:02:57]} 4. e3 {[%clk 0:02:51]}  Bf5 {[%clk 0:02:56]} 5. Bd3 {[%clk 0:02:51]}  Bxd3 {[%clk 0:02:49]} 6. Qxd3 {[%clk 0:02:52]}  e6 {[%clk 0:02:50]} 7. O-O {[%clk 0:02:52]}  Nbd7 {[%clk 0:02:42]} 8. Nc3 {[%clk 0:02:51]}  Bb4 {[%clk 0:02:41]} 9. a3 {[%clk 0:02:46]}  Bxc3 {[%clk 0:02:37]} 10. Qxc3 {[%clk 0:02:47]}  O-O {[%clk 0:02:36]} 11. b3 {[%clk 0:02:46]}  Ne4 {[%clk 0:02:28]} 12. Qc2 {[%clk 0:02:47]}  a5 {[%clk 0:02:20]} 13. a4 {[%clk 0:02:33]}  Qb6 {[%clk 0:02:19]} 14. Ba3 {[%clk 0:02:31]}  Rfd8 {[%clk 0:02:19]} 15. Ne1 {[%clk 0:02:30]}  e5 {[%clk 0:02:00]} 16. Nf3 {[%clk 0:02:21]}  exd4 {[%clk 0:01:59]} 17. Nxd4 {[%clk 0:02:12]}  Ne5 {[%clk 0:01:36]} 18. Bb2 {[%clk 0:02:01]}  Re8 {[%clk 0:01:17]} 19. Rac1 {[%clk 0:01:15]}  dxc4 {[%clk 0:01:03]} 20. Qxe4 {[%clk 0:01:08]}  Nd3 {[%clk 0:01:03]} 21. Qg4 {[%clk 0:00:57]}  Nxb2 {[%clk 0:01:03]} 22. Nf5 {[%clk 0:00:55]}  g6 {[%clk 0:01:02]} 23. Nh6+ {[%clk 0:00:34]}  Kg7 {[%clk 0:01:02]} 24. Nf5+ {[%clk 0:00:33]}  Kf8 {[%clk 0:00:54]} 25. Nd6 {[%clk 0:00:30]}  Re6 {[%clk 0:00:52]} 26. Qf4 {[%clk 0:00:25]}  Qc7 {[%clk 0:00:29]} 27. Qh6+ {[%clk 0:00:21]}  Kg8 {[%clk 0:00:28]} 28. Nxc4 {[%clk 0:00:22]}  Nd3 {[%clk 0:00:23]} 29. Rcd1 {[%clk 0:00:22]}  Nc5 {[%clk 0:00:24]} 30. Rb1 {[%clk 0:00:17]}  Rd8 {[%clk 0:00:22]} 31. Qh4 {[%clk 0:00:17]}  Rd3 {[%clk 0:00:15]} 32. f4 {[%clk 0:00:09]}  Re4 {[%clk 0:00:14]} 33. Qh3 {[%clk 0:00:07]}  Rxb3 {[%clk 0:00:12]} 34. Rxb3 {[%clk 0:00:07]}  Nxb3 {[%clk 0:00:13]} 35. Ne5 {[%clk 0:00:08]}  Nc5 {[%clk 0:00:11]} 36. Ng4 {[%clk 0:00:07]}  Qe7 {[%clk 0:00:10]} 37. f5 {[%clk 0:00:05]}  Nd7 {[%clk 0:00:09]} 38. f6 {[%clk 0:00:05]}  Qe8 {[%clk 0:00:04]} 39. Nh6+ {[%clk 0:00:05]}  Kh8 {[%clk 0:00:04]} 40. Rf3 {[%clk 0:00:02]}  Ne5 {[%clk 0:00:04]} 41. Rg3 {[%clk 0:00:01]}  Qd8 {[%clk 0:00:04]} 42. Nxf7+ {[%clk 0:00:01]}  Nxf7 {[%clk 0:00:04]} 43. Rf3 {[%clk 0:00:02]}  Qd1+ {[%clk 0:00:04]} 44. Rf1 {[%clk 0:00:03]}  Qd8 {[%clk 0:00:03]} 45. Qf3 {[%clk 0:00:02]}  Qe8 {[%clk 0:00:04]} 46. Qg3 {[%clk 0:00:01]}  Rxe3 {[%clk 0:00:04]} 47. Qc7 {[%clk 0:00:02]}  Re6 {[%clk 0:00:04]} 48. Qxb7 {[%clk 0:00:02]}  Kg8 {[%clk 0:00:05]} 49. Qb2 {[%clk 0:00:02]}  Re1 {[%clk 0:00:05]} 50. Qf2 {[%clk 0:00:02]}  Rxf1+ {[%clk 0:00:05]} 51. Qxf1 {[%clk 0:00:03]}  h5 {[%clk 0:00:06]} 52. Qf4 {[%clk 0:00:03]}  Qe5 {[%clk 0:00:06]} 53. Qc4 {[%clk 0:00:03]}  Qe1+ {[%clk 0:00:06]} 0-1


[Site "https://www.chess.com"]

[Event "Titled Tuesday Blitz March 08 Early 2022"]
[White "Kett, Tim"]
[Black "Orlov, Georgi"]
[WhiteFideId "1801210"]
[BlackFideId "2011271"]
[WhiteElo "2098"]
[BlackElo "2540"]
[Result "1-0"]
[Round "03"]
[TimeControl "180+1"]
[Date "2022.03.09"]
[WhiteClock "0:00:10"]
[BlackClock "0:00:02"]

1. e4 {[%clk 0:03:00]}  e6 {[%clk 0:02:59]} 2. d4 {[%clk 0:03:00]}  d5 {[%clk 0:02:59]} 3. e5 {[%clk 0:03:00]}  c5 {[%clk 0:02:59]} 4. Qg4 {[%clk 0:03:00]}  Qb6 {[%clk 0:02:57]} 5. Nf3 {[%clk 0:02:57]}  cxd4 {[%clk 0:02:55]} 6. Bd3 {[%clk 0:02:55]}  Nc6 {[%clk 0:02:52]} 7. O-O {[%clk 0:02:53]}  Nh6 {[%clk 0:02:47]} 8. Bxh6 {[%clk 0:02:44]}  gxh6 {[%clk 0:02:47]} 9. Nbd2 {[%clk 0:02:40]}  Bd7 {[%clk 0:02:42]} 10. Nb3 {[%clk 0:02:39]}  O-O-O {[%clk 0:02:31]} 11. Nbxd4 {[%clk 0:02:30]}  Nxd4 {[%clk 0:02:30]} 12. Qxd4 {[%clk 0:02:19]}  Bc5 {[%clk 0:02:19]} 13. Qc3 {[%clk 0:02:19]}  Kb8 {[%clk 0:02:17]} 14. a4 {[%clk 0:02:15]}  Rc8 {[%clk 0:02:13]} 15. Qd2 {[%clk 0:02:12]}  Qb4 {[%clk 0:01:48]} 16. c3 {[%clk 0:02:08]}  Qg4 {[%clk 0:01:42]} 17. b4 {[%clk 0:02:07]}  Rhg8 {[%clk 0:01:35]} 18. Ne1 {[%clk 0:02:02]}  Be7 {[%clk 0:01:26]} 19. Rc1 {[%clk 0:01:28]}  Qh5 {[%clk 0:00:58]} 20. Qe2 {[%clk 0:01:23]}  Qg5 {[%clk 0:00:51]} 21. Qe3 {[%clk 0:01:03]}  Bxb4 {[%clk 0:00:43]} 22. f4 {[%clk 0:00:50]}  Bc5 {[%clk 0:00:29]} 23. Qxc5 {[%clk 0:00:49]}  Rxc5 {[%clk 0:00:22]} 24. fxg5 {[%clk 0:00:49]}  Rxg5 {[%clk 0:00:23]} 25. Rxf7 {[%clk 0:00:48]}  Bxa4 {[%clk 0:00:22]} 26. Rxh7 {[%clk 0:00:45]}  Rxe5 {[%clk 0:00:21]} 27. Rxh6 {[%clk 0:00:32]}  Bc6 {[%clk 0:00:16]} 28. Kf2 {[%clk 0:00:27]}  d4 {[%clk 0:00:15]} 29. c4 {[%clk 0:00:24]}  Re3 {[%clk 0:00:15]} 30. Rd1 {[%clk 0:00:17]}  a5 {[%clk 0:00:13]} 31. Nc2 {[%clk 0:00:16]}  Ree5 {[%clk 0:00:13]} 32. Nxd4 {[%clk 0:00:16]}  Bd7 {[%clk 0:00:11]} 33. g4 {[%clk 0:00:13]}  a4 {[%clk 0:00:11]} 34. h4 {[%clk 0:00:13]}  a3 {[%clk 0:00:11]} 35. g5 {[%clk 0:00:13]}  a2 {[%clk 0:00:07]} 36. g6 {[%clk 0:00:13]}  Rc8 {[%clk 0:00:06]} 37. g7 {[%clk 0:00:12]}  Ba4 {[%clk 0:00:06]} 38. Rh8 {[%clk 0:00:11]}  Bxd1 {[%clk 0:00:04]} 39. Rxc8+ {[%clk 0:00:11]}  Kxc8 {[%clk 0:00:04]} 40. g8=Q+ {[%clk 0:00:11]}  Kc7 {[%clk 0:00:05]} 41. Qg7+ {[%clk 0:00:11]}  Kb6 {[%clk 0:00:05]} 42. Qxe5 {[%clk 0:00:11]}  a1=Q {[%clk 0:00:04]} 43. Qxe6+ {[%clk 0:00:11]}  Ka5 {[%clk 0:00:03]} 44. Qe5+ {[%clk 0:00:10]}  Kb4 {[%clk 0:00:02]} 45. Nc2+ {[%clk 0:00:11]}  Bxc2 {[%clk 0:00:02]} 46. Qxa1 {[%clk 0:00:10]}  Bxd3 {[%clk 0:00:03]} 47. Qg7 {[%clk 0:00:09]}  b6 {[%clk 0:00:02]} 48. h5 {[%clk 0:00:09]}  Bxc4 {[%clk 0:00:02]} 49. h6 {[%clk 0:00:09]}  b5 {[%clk 0:00:02]} 50. h7 {[%clk 0:00:10]} 1-0


[Site "https://www.chess.com"]

[Event "Titled Tuesday Blitz March 08 Early 2022"]
[White "Komiagina, Maria"]
[Black "Ianov, Viktor"]
[WhiteFideId "4153987"]
[BlackFideId "14102730"]
[WhiteElo "1945"]
[BlackElo "2161"]
[Result "1-0"]
[Round "03"]
[TimeControl "180+1"]
[Date "2022.03.09"]
[WhiteClock "0:00:13"]
[BlackClock "0:00:46"]

1. e4 {[%clk 0:03:00]}  d6 {[%clk 0:02:56]} 2. d4 {[%clk 0:03:00]}  Nf6 {[%clk 0:02:54]} 3. Nc3 {[%clk 0:03:00]}  c6 {[%clk 0:02:55]} 4. f4 {[%clk 0:02:54]}  Qb6 {[%clk 0:02:54]} 5. a3 {[%clk 0:02:45]}  e5 {[%clk 0:02:47]} 6. Nf3 {[%clk 0:02:39]}  exd4 {[%clk 0:02:44]} 7. Nxd4 {[%clk 0:02:35]}  g6 {[%clk 0:02:42]} 8. e5 {[%clk 0:02:20]}  dxe5 {[%clk 0:02:36]} 9. fxe5 {[%clk 0:02:19]}  Nh5 {[%clk 0:02:34]} 10. Be2 {[%clk 0:02:13]}  Ng7 {[%clk 0:02:30]} 11. Bg5 {[%clk 0:02:06]}  Ne6 {[%clk 0:02:28]} 12. Nxe6 {[%clk 0:02:03]}  Bxe6 {[%clk 0:02:27]} 13. Bf6 {[%clk 0:02:01]}  Rg8 {[%clk 0:02:27]} 14. Qd2 {[%clk 0:01:44]}  Nd7 {[%clk 0:02:23]} 15. Ne4 {[%clk 0:01:31]}  Qxb2 {[%clk 0:02:15]} 16. O-O {[%clk 0:01:25]}  Qb6+ {[%clk 0:01:57]} 17. Kh1 {[%clk 0:01:22]}  Qc7 {[%clk 0:01:57]} 18. Rad1 {[%clk 0:01:08]}  Bxa3 {[%clk 0:01:49]} 19. Nd6+ {[%clk 0:01:02]}  Bxd6 {[%clk 0:01:47]} 20. exd6 {[%clk 0:01:02]}  Qb6 {[%clk 0:01:45]} 21. Be7 {[%clk 0:00:53]}  Qc5 {[%clk 0:01:37]} 22. Qf4 {[%clk 0:00:46]}  h5 {[%clk 0:01:29]} 23. Bf3 {[%clk 0:00:33]}  Qe5 {[%clk 0:01:23]} 24. Qd2 {[%clk 0:00:28]}  g5 {[%clk 0:01:17]} 25. Rfe1 {[%clk 0:00:27]}  Qf4 {[%clk 0:01:13]} 26. Qc3 {[%clk 0:00:23]}  g4 {[%clk 0:01:09]} 27. Be4 {[%clk 0:00:21]}  h4 {[%clk 0:01:08]} 28. Bh7 {[%clk 0:00:19]}  Rf8 {[%clk 0:01:06]} 29. Bxf8 {[%clk 0:00:18]}  Nxf8 {[%clk 0:01:02]} 30. d7+ {[%clk 0:00:15]}  Nxd7 {[%clk 0:00:59]} 31. Rxe6+ {[%clk 0:00:15]}  fxe6 {[%clk 0:00:57]} 32. Bg6+ {[%clk 0:00:15]}  Kd8 {[%clk 0:00:49]} 33. Qh8+ {[%clk 0:00:14]}  Kc7 {[%clk 0:00:48]} 34. Qxa8 {[%clk 0:00:14]}  Ne5 {[%clk 0:00:46]} 35. Qd8# {[%clk 0:00:13]} 1-0


[Site "https://www.chess.com"]

[Event "Titled Tuesday Blitz March 08 Early 2022"]
[White "Kozak, Antoni"]
[Black "Hryshchenko, Kamila"]
[WhiteFideId "21832030"]
[BlackFideId "14147491"]
[WhiteElo "2236"]
[BlackElo "1929"]
[Result "1-0"]
[Round "03"]
[TimeControl "180+1"]
[Date "2022.03.09"]
[WhiteClock "0:00:04"]
[BlackClock "0:00:02"]

1. Nf3 {[%clk 0:02:59]}  Nf6 {[%clk 0:02:57]} 2. c4 {[%clk 0:02:41]}  e6 {[%clk 0:02:55]} 3. g3 {[%clk 0:02:36]}  d5 {[%clk 0:02:54]} 4. Bg2 {[%clk 0:02:37]}  dxc4 {[%clk 0:02:52]} 5. Qa4+ {[%clk 0:02:37]}  Nbd7 {[%clk 0:02:48]} 6. Qxc4 {[%clk 0:02:36]}  a6 {[%clk 0:02:46]} 7. Qc2 {[%clk 0:02:10]}  c5 {[%clk 0:02:36]} 8. O-O {[%clk 0:02:10]}  Rb8 {[%clk 0:02:30]} 9. Rd1 {[%clk 0:02:10]}  b5 {[%clk 0:02:25]} 10. d4 {[%clk 0:02:09]}  Bb7 {[%clk 0:02:19]} 11. a4 {[%clk 0:01:53]}  Rc8 {[%clk 0:02:11]} 12. axb5 {[%clk 0:01:49]}  axb5 {[%clk 0:02:12]} 13. Qb3 {[%clk 0:01:43]}  Qb6 {[%clk 0:02:07]} 14. Nc3 {[%clk 0:01:44]}  Bc6 {[%clk 0:02:00]} 15. Ne5 {[%clk 0:01:30]}  c4 {[%clk 0:01:50]} 16. Qc2 {[%clk 0:01:09]}  Bxg2 {[%clk 0:01:45]} 17. Kxg2 {[%clk 0:01:10]}  Nxe5 {[%clk 0:01:35]} 18. dxe5 {[%clk 0:01:10]}  Ng4 {[%clk 0:01:17]} 19. Ne4 {[%clk 0:01:08]}  Bc5 {[%clk 0:00:48]} 20. f3 {[%clk 0:00:40]}  Nxe5 {[%clk 0:00:33]} 21. Bf4 {[%clk 0:00:40]}  Nc6 {[%clk 0:00:24]} 22. Nxc5 {[%clk 0:00:10]}  Qxc5 {[%clk 0:00:25]} 23. Bd6 {[%clk 0:00:10]}  Qe3 {[%clk 0:00:13]} 24. Bf4 {[%clk 0:00:08]}  Qb3 {[%clk 0:00:10]} 25. Qxb3 {[%clk 0:00:05]}  cxb3 {[%clk 0:00:11]} 26. Bd6 {[%clk 0:00:05]}  f6 {[%clk 0:00:09]} 27. Ra3 {[%clk 0:00:03]}  Kf7 {[%clk 0:00:08]} 28. Rxb3 {[%clk 0:00:04]}  Rhd8 {[%clk 0:00:08]} 29. Rbd3 {[%clk 0:00:04]}  Na5 {[%clk 0:00:06]} 30. Kf2 {[%clk 0:00:04]}  Nc4 {[%clk 0:00:06]} 31. Ba3 {[%clk 0:00:03]}  Rxd3 {[%clk 0:00:05]} 32. Rxd3 {[%clk 0:00:04]}  Ra8 {[%clk 0:00:05]} 33. Rd7+ {[%clk 0:00:03]}  Kg6 {[%clk 0:00:05]} 34. Rb7 {[%clk 0:00:02]}  Nxa3 {[%clk 0:00:03]} 35. bxa3 {[%clk 0:00:02]}  Rxa3 {[%clk 0:00:03]} 36. Rxb5 {[%clk 0:00:03]}  Ra2 {[%clk 0:00:03]} 37. g4 {[%clk 0:00:03]}  Kf7 {[%clk 0:00:04]} 38. h4 {[%clk 0:00:03]}  e5 {[%clk 0:00:04]} 39. h5 {[%clk 0:00:04]}  g6 {[%clk 0:00:03]} 40. Rb7+ {[%clk 0:00:04]}  Kg8 {[%clk 0:00:02]} 41. h6 {[%clk 0:00:03]}  Rd2 {[%clk 0:00:02]} 42. Rg7+ {[%clk 0:00:03]}  Kh8 {[%clk 0:00:02]} 43. Rf7 {[%clk 0:00:04]}  Rd6 {[%clk 0:00:02]} 44. Rf8# {[%clk 0:00:04]} 1-0


[Site "https://www.chess.com"]

[Event "Titled Tuesday Blitz March 08 Early 2022"]
[White "Krylov, Ivan"]
[Black "Politov, Pavel Y."]
[WhiteFideId "24128066"]
[BlackFideId "24110515"]
[WhiteElo "2258"]
[BlackElo "2090"]
[Result "0-1"]
[Round "03"]
[TimeControl "180+1"]
[Date "2022.03.09"]
[WhiteClock "0:00:14"]
[BlackClock "0:00:05"]

1. e4 {[%clk 0:03:00]}  c5 {[%clk 0:02:59]} 2. Nf3 {[%clk 0:03:01]}  d6 {[%clk 0:02:59]} 3. c3 {[%clk 0:03:01]}  Nf6 {[%clk 0:02:57]} 4. h3 {[%clk 0:03:01]}  Nc6 {[%clk 0:02:54]} 5. Bd3 {[%clk 0:03:01]}  e5 {[%clk 0:02:46]} 6. Bc2 {[%clk 0:03:02]}  g6 {[%clk 0:02:42]} 7. O-O {[%clk 0:03:01]}  Bg7 {[%clk 0:02:42]} 8. d4 {[%clk 0:02:59]}  O-O {[%clk 0:02:40]} 9. Bg5 {[%clk 0:02:54]}  h6 {[%clk 0:02:33]} 10. Be3 {[%clk 0:02:53]}  Qe7 {[%clk 0:02:21]} 11. d5 {[%clk 0:02:48]}  Nd8 {[%clk 0:02:18]} 12. Qd2 {[%clk 0:02:45]}  Kh7 {[%clk 0:02:16]} 13. Na3 {[%clk 0:02:40]}  Ne8 {[%clk 0:02:12]} 14. c4 {[%clk 0:02:35]}  f5 {[%clk 0:02:07]} 15. Nb5 {[%clk 0:02:32]}  f4 {[%clk 0:02:02]} 16. Bxc5 {[%clk 0:02:22]}  dxc5 {[%clk 0:02:00]} 17. Qa5 {[%clk 0:02:15]}  b6 {[%clk 0:01:43]} 18. Qd2 {[%clk 0:02:12]}  Nd6 {[%clk 0:01:43]} 19. Nxd6 {[%clk 0:02:04]}  Qxd6 {[%clk 0:01:43]} 20. Qc3 {[%clk 0:01:54]}  Nf7 {[%clk 0:01:29]} 21. Ba4 {[%clk 0:01:49]}  Bd7 {[%clk 0:01:25]} 22. Bb3 {[%clk 0:01:48]}  Qe7 {[%clk 0:01:02]} 23. Rad1 {[%clk 0:01:45]}  Nd6 {[%clk 0:01:01]} 24. a4 {[%clk 0:01:44]}  a5 {[%clk 0:01:00]} 25. Bc2 {[%clk 0:01:41]}  Kg8 {[%clk 0:00:57]} 26. Bb1 {[%clk 0:01:38]}  Kf7 {[%clk 0:00:55]} 27. Qb3 {[%clk 0:01:34]}  Rab8 {[%clk 0:00:52]} 28. Rd2 {[%clk 0:01:23]}  Bf6 {[%clk 0:00:47]} 29. Qc3 {[%clk 0:01:21]}  g5 {[%clk 0:00:40]} 30. Nh2 {[%clk 0:01:19]}  h5 {[%clk 0:00:39]} 31. f3 {[%clk 0:01:17]}  Rg8 {[%clk 0:00:33]} 32. b3 {[%clk 0:01:10]}  Rbf8 {[%clk 0:00:29]} 33. Bd3 {[%clk 0:01:05]}  Rg7 {[%clk 0:00:29]} 34. Be2 {[%clk 0:01:05]}  Rfg8 {[%clk 0:00:28]} 35. Bd1 {[%clk 0:01:04]}  Qd8 {[%clk 0:00:22]} 36. Rff2 {[%clk 0:01:02]}  Qc8 {[%clk 0:00:22]} 37. Be2 {[%clk 0:01:01]}  g4 {[%clk 0:00:18]} 38. fxg4 {[%clk 0:00:59]}  hxg4 {[%clk 0:00:18]} 39. Bxg4 {[%clk 0:00:58]}  Nxe4 {[%clk 0:00:16]} 40. Bxd7 {[%clk 0:00:55]}  Qxd7 {[%clk 0:00:17]} 41. Qd3 {[%clk 0:00:52]}  Nxd2 {[%clk 0:00:17]} 42. Rxd2 {[%clk 0:00:48]}  Qd6 {[%clk 0:00:10]} 43. Ng4 {[%clk 0:00:46]}  Rxg4 {[%clk 0:00:09]} 44. hxg4 {[%clk 0:00:46]}  Rxg4 {[%clk 0:00:10]} 45. Qh7+ {[%clk 0:00:41]}  Rg7 {[%clk 0:00:10]} 46. Qh5+ {[%clk 0:00:40]}  Ke7 {[%clk 0:00:10]} 47. Qf3 {[%clk 0:00:35]}  Qd7 {[%clk 0:00:10]} 48. d6+ {[%clk 0:00:33]}  Kf8 {[%clk 0:00:09]} 49. Qa8+ {[%clk 0:00:31]}  Kf7 {[%clk 0:00:07]} 50. Qd5+ {[%clk 0:00:30]}  Qe6 {[%clk 0:00:06]} 51. Qb7+ {[%clk 0:00:23]}  Kg6 {[%clk 0:00:05]} 52. Qxb6 {[%clk 0:00:21]}  e4 {[%clk 0:00:04]} 53. Qxc5 {[%clk 0:00:17]}  e3 {[%clk 0:00:05]} 54. Re2 {[%clk 0:00:16]}  Rd7 {[%clk 0:00:05]} 55. Qxa5 {[%clk 0:00:15]}  Qxd6 {[%clk 0:00:05]} 56. Qe1 {[%clk 0:00:14]}  Qd1 {[%clk 0:00:06]} 57. Kf1 {[%clk 0:00:13]}  Qxe1+ {[%clk 0:00:05]} 58. Rxe1 {[%clk 0:00:14]}  Bh4 {[%clk 0:00:05]} 59. Re2 {[%clk 0:00:15]}  Rd1+ {[%clk 0:00:04]} 60. Re1 {[%clk 0:00:14]}  Rxe1# {[%clk 0:00:05]} 0-1


[Site "https://www.chess.com"]